lending/lending_fUSD_20240417
["ID","MTS","AMOUNT","RATE_DAILY","PERIOD"]
[322831335,1713373831929,-3377.35550732,0.00016509,2]
[322831336,1713373831940,-709.23892716,0.00016509,2]
[322831337,1713373831951,-786.43640324,0.00016509,2]
[322831338,1713373831961,-162.319678,0.00016509,2]
[322831339,1713373831970,-1981.32093739,0.00016509,2]
[322831340,1713373831981,-165439.38861489,0.00016511,2]
[322831341,1713373832024,-499.72856,0.00016511,2]
[322831342,1713373832035,-400.0,0.00016511,2]
[322831343,1713373832047,-362.178,0.00016511,2]
[322831344,1713373832059,-444.93,0.00016511,2]
[322831345,1713373832070,-527.1050229,0.00016511,2]
[322831347,1713373832090,-858.49621984,0.00016511,2]
[322831349,1713373832101,-30202.5,0.00016511,2]
[322831365,1713373832502,-5790.66547402,0.00016511,2]
[322831381,1713373837704,-1791.1287,0.00015658,2]
[322831382,1713373837713,-4469.78007738,0.00015752,2]
[322831384,1713373837723,-582.99122262,0.00016511,2]
[322831393,1713373837818,-424.88308538,0.00016511,2]
[322831394,1713373837900,-2433.79223961,0.00016511,2]
[322831395,1713373837912,-320383.77887548,0.00016511,2]
[322831396,1713373837924,-17451.44096381,0.00016511,2]
[322831397,1713373837933,-1557.82,0.00016512,2]
[322831398,1713373837943,-400.0,0.00016512,2]
[322831399,1713373837952,-40011.4814,0.00016512,2]
[322831400,1713373837961,-500.0,0.00016512,2]
[322831401,1713373837970,-1000.0,0.00016512,2]
[322831402,1713373837979,-966.55573744,0.0001661,2]
[322831403,1713373837991,-155.0,0.0001661,2]
[322831404,1713373838000,-1241.03910676,0.0001661,2]
[322831405,1713373838010,-155.0,0.0001661,2]
[322831406,1713373838020,-200.11175546,0.0001661,2]
[322831407,1713373838029,-202.14216056,0.0001661,2]
[322831408,1713373838037,-244.25184656,0.0001661,2]
[322831409,1713373838046,-179.60671853,0.00016611,2]
[322831411,1713373838055,-77313.9892,0.00016613,2]
[322831413,1713373838064,-245000.0,0.00016613,2]
[322831415,1713373838074,-544.62158294,0.00016953,2]
[322831417,1713373838083,-555.13257678,0.00017053,2]
[322831419,1713373838092,-159.31,0.00017164,2]
[322831421,1713373838101,-544.62158286,0.00017312,2]
[322831423,1713373838111,-159.31,0.00017387,2]
[322831425,1713373838120,-159.31,0.00017611,2]
[322831427,1713373838130,-166.46,0.00017621,2]
[322831429,1713373838139,-544.62158286,0.00017671,2]
[322831431,1713373838148,-555.13257678,0.00017694,2]
[322831433,1713373838157,-159.31,0.00017835,2]
[322831435,1713373838167,-5309.89150605,0.0001788,2]
[322831437,1713373838176,-5309.89150605,0.0001788,2]
[322831439,1713373838185,-5309.89150605,0.0001788,2]
[322831441,1713373838194,-5309.89150605,0.00017975,2]
[322831442,1713373838203,-1127.01290841,0.00018,2]
[322831443,1713373838212,-1127.01290841,0.00018,2]
[322831444,1713373838222,-1127.01290841,0.00018,2]
[322831445,1713373838230,-1127.01290841,0.00018,2]
[322831446,1713373838243,-1127.01290841,0.00018,2]
[322831447,1713373838252,-1127.01290841,0.00018,2]
[322831448,1713373838261,-1127.01290841,0.00018,2]
[322831449,1713373838269,-1127.01290841,0.00018,2]
[322831450,1713373838280,-1127.01290841,0.00018,2]
[322831451,1713373838289,-1127.01290841,0.00018,2]
[322831452,1713373838298,-1127.01290841,0.00018,2]
[322831453,1713373838307,-1127.01290841,0.00018,2]
[322831454,1713373838316,-1127.01290841,0.00018,2]
[322831455,1713373838325,-1127.01290841,0.00018,2]
[322831456,1713373838335,-1127.01290841,0.00018,2]
[322831457,1713373838345,-1127.01290841,0.00018,2]
[322831458,1713373838354,-1127.01290841,0.00018,2]
[322831459,1713373838363,-1127.01290841,0.00018,2]
[322831460,1713373838372,-1127.01290841,0.00018,2]
[322831461,1713373838380,-1127.01290841,0.00018,2]
[322831462,1713373838390,-1127.01290841,0.00018,2]
[322831464,1713373838399,-1127.01290841,0.00018,2]
[322831466,1713373838409,-1127.01290841,0.00018,2]
[322831468,1713373838418,-1127.01290841,0.00018,2]
[322831470,1713373838427,-1127.01290841,0.00018,2]
[322831472,1713373838436,-1127.01290841,0.00018,2]
[322831474,1713373838446,-1127.01290841,0.00018,2]
[322831475,1713373838455,-1127.01290841,0.00018,2]
[322831476,1713373838464,-1127.01290841,0.00018,2]
[322831477,1713373838473,-1127.01290841,0.00018,2]
[322831478,1713373838486,-1127.01290841,0.00018,2]
[322831479,1713373838495,-1127.01290841,0.00018,2]
[322831480,1713373838504,-1127.01290841,0.00018,2]
[322831481,1713373838514,-1127.01290841,0.00018,2]
[322831482,1713373838523,-1127.01290841,0.00018,2]
[322831483,1713373838532,-1127.01290841,0.00018,2]
[322831484,1713373838542,-1127.01290841,0.00018,2]
[322831485,1713373838551,-1127.01290841,0.00018,2]
[322831486,1713373838561,-1127.01290841,0.00018,2]
[322831487,1713373838570,-1127.01290841,0.00018,2]
[322831488,1713373838579,-1127.01290841,0.00018,2]
[322831489,1713373838587,-1127.01290841,0.00018,2]
[322831490,1713373838597,-1127.01290841,0.00018,2]
[322831491,1713373838606,-1127.01290841,0.00018,2]
[322831492,1713373838615,-1127.01290841,0.00018,2]
[322831493,1713373838624,-1127.01290841,0.00018,2]
[322831494,1713373838633,-1127.01290841,0.00018,2]
[322831495,1713373838643,-1127.01290841,0.00018,2]
[322831496,1713373838653,-1127.01290841,0.00018,2]
[322831497,1713373838664,-1127.01290841,0.00018,2]
[322831498,1713373838673,-1127.01290841,0.00018,2]
[322831499,1713373838683,-1127.01290841,0.00018,2]
[322831500,1713373838692,-1127.01290841,0.00018,2]
[322831501,1713373838701,-1127.01290841,0.00018,2]
[322831502,1713373838709,-1127.01290841,0.00018,2]
[322831503,1713373838719,-1127.01290841,0.00018,2]
[322831504,1713373838728,-1127.01290841,0.00018,2]
[322831505,1713373838740,-1127.01290841,0.00018,2]
[322831506,1713373838750,-1127.01290841,0.00018,2]
[322831507,1713373838760,-1127.01290841,0.00018,2]
[322831508,1713373838769,-1127.01290841,0.00018,2]
[322831509,1713373838780,-1127.01290841,0.00018,2]
[322831510,1713373838789,-1127.01290841,0.00018,2]
[322831511,1713373838798,-1127.01290841,0.00018,2]
[322831512,1713373838808,-1127.01290841,0.00018,2]
[322831513,1713373838816,-1127.01290841,0.00018,2]
[322831514,1713373838831,-1127.01290841,0.00018,2]
[322831515,1713373838840,-1127.01290841,0.00018,2]
[322831516,1713373838849,-1127.01290841,0.00018,2]
[322831517,1713373838859,-1127.01290841,0.00018,2]
[322831518,1713373838868,-544.62158286,0.00018029,2]
[322831519,1713373838878,-159.31,0.00018058,2]
[322831520,1713373838887,-534.0,0.00018083,2]
[322831521,1713373838897,-545.0,0.00018083,2]
[322831522,1713373838906,-555.13257678,0.00018335,2]
[322831523,1713373838916,-544.62158286,0.00018388,2]
[322831524,1713373838925,-5309.89150605,0.00018463,2]
[322831525,1713373838935,-400.0,0.00018575,2]
[322831526,1713373838944,-1005.11,0.00018625,2]
[322831527,1713373838954,-150.99,0.00018629,2]
[322831528,1713373838963,-544.62158286,0.00018747,2]
[322831529,1713373838972,-7993.74173776,0.000189,2]
[322831530,1713373838982,-182.905869,0.00018904,2]
[322831531,1713373838995,-534.0,0.00018905,2]
[322831532,1713373839005,-545.0,0.00018905,2]
[322831533,1713373839269,-5309.89150605,0.0001895,2]
[322831534,1713373839286,-555.13257678,0.00018977,2]
[322831535,1713373839296,-1550.0,0.00019,3]
[322831536,1713373839307,-544.62158286,0.00019106,2]
[322831537,1713373839317,-500.0,0.00019178,2]
[322831538,1713373839326,-318.25055119,0.00019178,2]
[322831539,1713373839337,-411.72009833,0.00019178,2]
[322831540,1713373839347,-518.37061953,0.00019178,2]
[322831541,1713373839357,-465.93292652,0.00019178,2]
[322831542,1713373839367,-3393.0,0.000192,2]
[322831543,1713373839376,-600.0,0.00019242,2]
[322831544,1713373839386,-1557.82,0.00019251,2]
[322831545,1713373839396,-1140.0,0.00019321,2]
[322831546,1713373839406,-265.85,0.00019328,2]
[322831547,1713373839415,-5309.89150605,0.00019438,2]
[322831548,1713373839426,-544.62158286,0.00019465,2]
[322831549,1713373839435,-1171.96011043,0.000195,3]
[322831550,1713373839445,-555.13257678,0.00019618,2]
[322831551,1713373839454,-265.585,0.00019618,2]
[322831552,1713373839463,-513.0,0.00019726,2]
[322831553,1713373839472,-182.905869,0.00019726,2]
[322831554,1713373839481,-1000.0,0.00019726,2]
[322831555,1713373839492,-544.62158286,0.00019824,2]
[322831556,1713373839502,-153.70002981,0.000199,2]
[322831558,1713373839511,-5309.89150605,0.00019925,2]
[322831559,1713373839521,-982.77141677,0.0002,2]
[322831560,1713373839530,-28000.0,0.0002,5]
[322831561,1713373839541,-155.0,0.0002,2]
[322831562,1713373839554,-1765.57043751,0.0002,2]
[322831563,1713373839567,-859.35539064,0.0002,2]
[322831564,1713373839575,-186.07241725,0.0002,2]
[322831565,1713373839585,-3065.67342855,0.0002,2]
[322831567,1713373839595,-641.27305155,0.0002,2]
[322831568,1713373839604,-6219.13910648,0.0002,2]
[322831569,1713373839614,-20196.34585858,0.0002,2]
[322831570,1713373839624,-557.17,0.00020055,2]
[322831571,1713373839633,-1140.9,0.00020055,2]
[322831572,1713373839642,-544.62158286,0.00020182,2]
[322831574,1713373839651,-555.13257678,0.00020259,2]
[322831576,1713373839660,-1967.0,0.000204,2]
[322831577,1713373839669,-5309.89150605,0.00020413,2]
[322831579,1713373839678,-150.0,0.000205,2]
[322831580,1713373839687,-166.46,0.00020529,2]
[322831581,1713373839697,-544.62158286,0.00020541,2]
[322831582,1713373839706,-182.905869,0.00020548,2]
[322831583,1713373839715,-513.0,0.00020548,2]
[322831584,1713373839724,-400.0,0.00020639,2]
[322831585,1713373839735,-7500.0,0.000207,2]
[322831586,1713373839744,-150.0,0.00020726,2]
[322831587,1713373839753,-150.0,0.00020729,2]
[322831588,1713373839762,-150.0,0.00020733,2]
[322831589,1713373839774,-150.0,0.00020733,2]
[322831590,1713373839786,-150.0,0.00020734,2]
[322831591,1713373839806,-150.0,0.00020738,2]
[322831592,1713373839818,-150.0,0.00020738,2]
[322831593,1713373839827,-150.0,0.00020738,2]
[322831594,1713373839837,-150.0,0.00020741,2]
[322831595,1713373839846,-150.0,0.00020743,2]
[322831596,1713373839856,-150.0,0.00020744,2]
[322831597,1713373839866,-150.0,0.00020747,2]
[322831598,1713373839876,-150.0,0.00020751,2]
[322831599,1713373839885,-150.0,0.00020752,2]
[322831600,1713373839894,-150.0,0.00020753,2]
[322831601,1713373839904,-150.0,0.00020753,2]
[322831602,1713373839914,-150.0,0.00020753,2]
[322831603,1713373839923,-150.0,0.00020761,2]
[322831604,1713373839933,-150.0,0.00020763,2]
[322831605,1713373839942,-150.0,0.00020764,2]
[322831606,1713373839952,-150.0,0.00020765,2]
[322831607,1713373839962,-150.0,0.00020767,2]
[322831608,1713373839971,-150.0,0.00020771,2]
[322831609,1713373839980,-150.0,0.00020777,2]
[322831610,1713373839992,-150.0,0.00020777,2]
[322831611,1713373840001,-150.0,0.00020778,2]
[322831612,1713373840011,-150.0,0.00020779,2]
[322831613,1713373840020,-6933.09121626,0.0002079,2]
[322831614,1713373840029,-164.60549445,0.0002079,2]
[322831615,1713373840039,-150.0,0.0002079,2]
[322831616,1713373840049,-2923.17809,0.0002079,2]
[322831617,1713373840059,-150.0,0.00020791,2]
[322831618,1713373840068,-150.0,0.00020792,2]
[322831619,1713373840078,-150.0,0.00020794,2]
[322831620,1713373840087,-150.0,0.00020799,2]
[322831621,1713373840096,-242942.08463545,0.000208,2]
[322831622,1713373840144,-353.33450113,0.000208,2]
[322831623,1713373840155,-646.28503229,0.000208,2]
[322831628,1713373840387,-874.39244118,0.00018,2]
[322831630,1713373840399,-252.62046723,0.00018,2]
[322831632,1713373840408,-1127.01290841,0.00018,2]
[322831634,1713373840417,-754.62662439,0.00018,2]
[322831636,1713373840431,-372.38628402,0.00018,2]
[322831638,1713373840440,-1127.01290841,0.00018,2]
[322831640,1713373840449,-1127.01290841,0.00018,2]
[322831642,1713373840459,-1127.01290841,0.00018,2]
[322831644,1713373840468,-1127.01290841,0.00018,2]
[322831646,1713373840477,-6058.29583113,0.000208,2]
[322831649,1713373840488,-150.0,0.00020801,2]
[322831650,1713373840497,-150.0,0.00020801,2]
[322831651,1713373840505,-150.0,0.00020805,2]
[322831652,1713373840514,-150.0,0.00020811,2]
[322831653,1713373840522,-150.0,0.00020811,2]
[322831654,1713373840531,-150.0,0.00020811,2]
[322831655,1713373840540,-150.0,0.00020813,2]
[322831656,1713373840549,-150.0,0.00020814,2]
[322831657,1713373840558,-150.0,0.00020816,2]
[322831658,1713373840568,-200.0,0.00020832,2]
[322831659,1713373840577,-1000.0,0.00020832,2]
[322831660,1713373840586,-200.0,0.00020832,2]
[322831661,1713373840595,-500.0,0.00020832,2]
[322831662,1713373840605,-200.0,0.00020832,2]
[322831663,1713373840614,-150.0,0.00020836,2]
[322831664,1713373840623,-150.0,0.00020838,2]
[322831665,1713373840632,-150.0,0.00020839,2]
[322831666,1713373840641,-150.0,0.00020841,2]
[322831667,1713373840651,-150.0,0.00020844,2]
[322831668,1713373840660,-150.0,0.00020846,2]
[322831669,1713373840669,-150.0,0.00020857,2]
[322831670,1713373840678,-150.0,0.00020859,2]
[322831671,1713373840687,-150.0,0.0002086,2]
[322831672,1713373840696,-150.0,0.00020861,2]
[322831673,1713373840705,-150.0,0.00020873,2]
[322831674,1713373840714,-1000.0,0.00020874,2]
[322831675,1713373840723,-1000.0,0.00020874,2]
[322831676,1713373840733,-150.0,0.00020876,2]
[322831677,1713373840742,-150.0,0.00020876,2]
[322831678,1713373840752,-150.0,0.00020879,2]
[322831679,1713373840761,-150.0,0.00020879,2]
[322831680,1713373840769,-150.0,0.0002088,2]
[322831681,1713373840781,-150.0,0.00020882,2]
[322831682,1713373840792,-150.0,0.00020884,2]
[322831683,1713373840801,-150.0,0.00020887,2]
[322831684,1713373840810,-150.0,0.00020887,2]
[322831685,1713373840819,-1005.11,0.00020889,2]
[322831686,1713373840830,-150.0,0.0002089,2]
[322831687,1713373840840,-150.0,0.00020895,2]
[322831688,1713373840849,-150.0,0.00020896,2]
[322831689,1713373840861,-24460.0,0.000209,2]
[322831690,1713373840871,-375.60619828,0.000209,2]
[322831691,1713373840880,-373.4306,0.000209,2]
[322831692,1713373840890,-730.0,0.000209,2]
[322831693,1713373840900,-555.13257678,0.000209,2]
[322831694,1713373840909,-5309.89150605,0.000209,2]
[322831695,1713373840919,-755.28438296,0.000209,2]
[322831696,1713373840928,-755.28438292,0.000209,2]
[322831697,1713373840937,-755.28438292,0.000209,2]
[322831698,1713373840948,-755.28438292,0.000209,2]
[322831699,1713373840956,-755.28438292,0.000209,2]
[322831700,1713373840965,-755.28438292,0.000209,2]
[322831701,1713373840974,-755.28438292,0.000209,2]
[322831702,1713373840986,-755.28438292,0.000209,2]
[322831703,1713373840994,-755.28438292,0.000209,2]
[322831704,1713373841004,-755.28438292,0.000209,2]
[322831705,1713373841013,-755.28438292,0.000209,2]
[322831706,1713373841026,-755.28438292,0.000209,2]
[322831707,1713373841036,-755.28438292,0.000209,2]
[322831708,1713373841046,-755.28438292,0.000209,2]
[322831709,1713373841055,-755.28438292,0.000209,2]
[322831710,1713373841064,-755.28438292,0.000209,2]
[322831711,1713373841074,-755.28438292,0.000209,2]
[322831712,1713373841083,-755.28438292,0.000209,2]
[322831713,1713373841092,-755.28438292,0.000209,2]
[322831714,1713373841101,-755.28438292,0.000209,2]
[322831715,1713373841111,-477.34876585,0.000209,2]
[322831716,1713373841120,-150.0,0.00020901,2]
[322831717,1713373841129,-150.0,0.00020906,2]
[322831718,1713373841138,-150.0,0.00020915,2]
[322831719,1713373841147,-150.0,0.00020923,2]
[322831720,1713373841157,-150.0,0.00020927,2]
[322831721,1713373841167,-150.0,0.00020929,2]
[322831722,1713373841176,-150.0,0.00020932,2]
[322831723,1713373841186,-150.0,0.00020933,2]
[322831724,1713373841195,-150.0,0.00020934,2]
[322831725,1713373841205,-150.0,0.00020936,2]
[322831726,1713373841214,-150.0,0.00020939,2]
[322831727,1713373841223,-150.0,0.0002094,2]
[322831728,1713373841232,-150.0,0.00020942,2]
[322831729,1713373841243,-150.0,0.00020944,2]
[322831730,1713373841252,-150.0,0.00020946,2]
[322831731,1713373841262,-150.0,0.00020949,2]
[322831732,1713373841270,-150.0,0.0002095,2]
[322831733,1713373841280,-150.0,0.00020952,2]
[322831734,1713373841289,-150.0,0.00020962,2]
[322831735,1713373841298,-150.0,0.00020964,2]
[322831736,1713373841305,-150.0,0.00020965,2]
[322831737,1713373841314,-150.0,0.00020967,2]
[322831738,1713373841323,-150.0,0.00020967,2]
[322831739,1713373841333,-150.0,0.00020973,2]
[322831740,1713373841342,-150.0,0.00020977,2]
[322831741,1713373841353,-90869.87548636,0.0002098,2]
[322831742,1713373841367,-622.06788422,0.0002098,2]
[322831743,1713373841393,-1127.01290841,0.00018,2]
[322831744,1713373841402,-150.0,0.00020863,2]
[322831745,1713373841412,-120875.16307576,0.0002098,2]
[322831746,1713373841422,-150.0,0.00020981,2]
[322831747,1713373841430,-150.0,0.00020981,2]
[322831748,1713373841439,-150.0,0.00020982,2]
[322831749,1713373841448,-150.0,0.00020984,2]
[322831750,1713373841458,-150.0,0.00020985,2]
[322831751,1713373841468,-150.0,0.0002099,2]
[322831752,1713373841477,-150.0,0.00020991,2]
[322831753,1713373841489,-150.0,0.00020993,2]
[322831754,1713373841498,-307.91625811,0.00020995,2]
[322831755,1713373841511,-4401.60261938,0.00020995,2]
[322831756,1713373841520,-155.24047283,0.00020995,2]
[322831757,1713373841529,-234.82852337,0.00020995,2]
[322831758,1713373841538,-150.0,0.00020995,2]
[322831759,1713373841547,-301.98668028,0.00020996,2]
[322831760,1713373841556,-150.0,0.00020996,2]
[322831761,1713373841566,-216045.4858778,0.00020997,2]
[322831762,1713373841575,-32712.781443,0.00020997,2]
[322831763,1713373841585,-10618.8285293,0.00020997,2]
[322831764,1713373841594,-3869.82317102,0.00020998,2]
[322831765,1713373841603,-190.3798434,0.00020998,2]
[322831766,1713373841612,-928.61876004,0.00020998,2]
[322831767,1713373841622,-8439.96368756,0.00020998,2]
[322831768,1713373841631,-3135.20721588,0.00020998,2]
[322831769,1713373841640,-297.19180499,0.00020998,2]
[322831770,1713373841650,-1256.5732188,0.00020998,2]
[322831771,1713373841659,-155.40492135,0.00020998,2]
[322831772,1713373841668,-639.608228,0.00020999,2]
[322831773,1713373841678,-165.58228841,0.00020999,2]
[322831774,1713373841687,-1664.91518903,0.00020999,2]
[322831775,1713373841696,-1329.84081769,0.00020999,5]
[322831776,1713373841706,-150.0,0.00020999,2]
[322831777,1713373841715,-1738.25079254,0.00021,3]
[322831778,1713373841725,-208.68939628,0.00021,2]
[322831779,1713373841734,-193663.15360729,0.00021,2]
[322831780,1713373841744,-446724.98236758,0.00021,2]
[322831781,1713373841756,-153033.76693154,0.00021,2]
[322831782,1713373841790,-6223.52408954,0.00021,2]
[322831783,1713373841897,-24.82249999,0.00018,2]
[322831809,1713373842844,-2420.23594848,0.0001788,2]
[322831817,1713373842990,-333.90014683,0.0001788,2]
[322831863,1713373846268,-1849.79574169,0.00016512,2]
[322831865,1713373846281,-17194.34709478,0.00016512,2]
[322831868,1713373846292,-14777.08332768,0.00016512,2]
[322831870,1713373846311,-2770.95582612,0.00016512,2]
[322831874,1713373846331,-3393.67240973,0.00016512,2]
[322831876,1713373846341,-287.89344271,0.00017879,2]
[322831878,1713373846350,-402.51943463,0.00017879,2]
[322831880,1713373846360,-731.36157303,0.0001788,2]
[322831882,1713373846370,-1102.19040842,0.00018,2]
[322831884,1713373846380,-1127.01290841,0.00018,2]
[322831886,1713373846390,-1127.01290841,0.00018,2]
[322831888,1713373846400,-1127.01290841,0.00018,2]
[322831890,1713373846410,-1127.01290841,0.00018,2]
[322831892,1713373846421,-1127.01290841,0.00018,2]
[322831894,1713373846431,-1127.01290841,0.00018,2]
[322831896,1713373846441,-1127.01290841,0.00018,2]
[322831898,1713373846450,-1127.01290841,0.00018,2]
[322831900,1713373846460,-1127.01290841,0.00018,2]
[322831902,1713373846471,-1127.01290841,0.00018,2]
[322831904,1713373846480,-1127.01290841,0.00018,2]
[322831906,1713373846492,-1127.01290841,0.00018,2]
[322831908,1713373846503,-1127.01290841,0.00018,2]
[322831910,1713373846513,-1127.01290841,0.00018,2]
[322831912,1713373846522,-1127.01290841,0.00018,2]
[322831914,1713373846532,-1127.01290841,0.00018,2]
[322831916,1713373846543,-1127.01290841,0.00018,2]
[322831917,1713373846552,-1127.01290841,0.00018,2]
[322831919,1713373846561,-1127.01290841,0.00018,2]
[322831922,1713373846572,-1127.01290841,0.00018,2]
[322831924,1713373846581,-1127.01290841,0.00018,2]
[322831926,1713373846591,-150.0,0.00020797,2]
[322831928,1713373846600,-150.0,0.00020817,2]
[322831929,1713373846610,-245.11567796,0.00020836,2]
[322831931,1713373846620,-150.0,0.00020847,2]
[322831934,1713373846630,-544.62158286,0.000209,2]
[322831935,1713373846639,-669.0,0.00020952,2]
[322831938,1713373846649,-1109.94345936,0.00020999,2]
[322831940,1713373846659,-27476.41093473,0.00021,2]
[322831953,1713373902582,2762.22,0.000283,120]
[322831955,1713374097986,177.63,0.00025779,120]
[322831957,1713374314309,-538.85837783,0.00016308,2]
[322831958,1713374314333,-15539.14162217,0.00016308,4]
[322831959,1713374327939,1217501.17182719,0.000255,30]
[322831960,1713374327965,198900.0,0.000255,30]
[322831961,1713374328007,4975041.26003068,0.000255,30]
[322831962,1713374328049,4998261.0660874,0.000255,30]
[322831963,1713374328073,301988.77772951,0.000255,30]
[322831964,1713374487137,269.86893776,0.000283,120]
[322831967,1713374602853,-163.17433236,0.00016211,2]
[322831968,1713374602874,-1000.0,0.000163,2]
[322831969,1713374602896,-1342.0,0.000163,2]
[322831970,1713374602917,-1000.0,0.000163,2]
[322831971,1713374602939,-46494.82566764,0.00016307,4]
[322832080,1713375031878,-713.51074324,0.0001597,2]
[322832082,1713375031889,-165.61925676,0.0001597,2]
[322832084,1713375031898,-572.74836471,0.00016207,4]
[322832085,1713375031910,-13215.14964338,0.00016207,4]
[322832086,1713375031923,-24202.18642409,0.00016207,4]
[322832087,1713375031935,-339.49342103,0.00016207,4]
[322832088,1713375032048,-418.7472,0.00016207,4]
[322832089,1713375032059,-264.9085,0.00016207,4]
[322832090,1713375032071,-412.5845005,0.00016207,4]
[322832091,1713375032215,-6223.23526121,0.00016207,4]
[322832092,1713375032227,-1256.0721124,0.00016207,4]
[322832093,1713375032238,-960.42655982,0.00016207,4]
[322832094,1713375032250,-450.037073,0.00016207,4]
[322832125,1713375037873,-528.0726,0.00016207,4]
[322832126,1713375037933,-1983.585598,0.00016207,4]
[322832127,1713375037990,-4957.31830756,0.00016207,4]
[322832128,1713375037999,-1000.0,0.00016208,2]
[322832129,1713375038009,-995.80993522,0.00016208,2]
[322832130,1713375038049,-910.6540798,0.00016208,2]
[322832131,1713375038112,-593.53598498,0.00016208,2]
[322832132,1713375038122,-915.58086566,0.00016208,2]
[322832133,1713375038171,-14489.12623434,0.00016208,2]
[322832134,1713375038182,-3601.84352145,0.00016306,2]
[322832135,1713375038191,-409.47529948,0.00016307,2]
[322832136,1713375038200,-4292454.23616773,0.00016308,2]
[322832137,1713375038212,-576521.53277816,0.00016308,2]
[322832186,1713375040007,-2723.68358874,0.00016308,2]
[322832187,1713375040069,-840.71707407,0.00016308,2]
[322832188,1713375040088,-264564.05894427,0.00016308,2]
[322832189,1713375040127,-19455.84371685,0.00016308,2]
[322832190,1713375040284,-1681.9820739,0.00016308,2]
[322832191,1713375040296,-1654.42491214,0.00016308,2]
[322832192,1713375040307,-454.42431047,0.00016308,2]
[322832474,1713375042985,-13828.05438873,0.00016308,2]
[322832547,1713375043544,-1748.42612295,0.00016308,2]
[322832549,1713375043555,-204085.72995303,0.00016308,2]
[322832551,1713375043567,-1013754.10596896,0.00016308,2]
[322832553,1713375043577,-500.0,0.00016311,2]
[322832555,1713375043586,-245000.0,0.00016411,2]
[322832557,1713375043595,-100000.0,0.00016411,2]
[322832559,1713375043604,-968.86822044,0.00016511,2]
[322832561,1713375043613,-1000.0,0.00016512,2]
[322832563,1713375043622,-499.99,0.00016512,2]
[322832565,1713375043631,-429.19,0.00016871,2]
[322832567,1713375043640,-1000.0,0.00017,2]
[322832569,1713375043649,-250.0,0.00017339,2]
[322832572,1713375043659,-152.57,0.00017348,2]
[322832576,1713375043668,-23900.0,0.00017416,2]
[322832581,1713375043678,-1072.99,0.00017484,2]
[322832586,1713375043688,-152.57,0.00017499,2]
[322832589,1713375043697,-7271.11484952,0.00017561,2]
[322832594,1713375043708,-652.70230103,0.00017561,2]
[322832598,1713375043719,-1183.73810806,0.00017561,2]
[322832852,1713375045941,-16957.56474139,0.00017561,2]
[322832855,1713375045952,-152.57,0.00017649,2]
[322832857,1713375045961,-496.16,0.00017656,2]
[322832859,1713375045971,-152.57,0.000178,2]
[322832861,1713375045981,-155.69248739,0.0001788,2]
[322832863,1713375045992,-3228.26225395,0.0001788,2]
[322832865,1713375046002,-3228.26225388,0.0001788,2]
[322832867,1713375046011,-3228.26225388,0.0001788,2]
[322832869,1713375046021,-3228.26225388,0.0001788,2]
[322832871,1713375046031,-152.57,0.00017951,2]
[322832873,1713375046041,-274.48,0.00017952,2]
[322832875,1713375046050,-1000.0,0.00018,2]
[322832877,1713375046060,-152.57,0.00018101,2]
[322832879,1713375046070,-879.13,0.00018233,2]
[322832881,1713375046079,-152.57,0.00018252,2]
[322832883,1713375046089,-3228.26225388,0.00018295,2]
[322832884,1713375046098,-1218.95307143,0.00018816,2]
[322832888,1713375046119,-261.94,0.00018816,2]
[322832890,1713375046131,-1747.36918245,0.00018816,2]
[322832892,1713375046142,-91955.22592892,0.00019,2]
[322832896,1713375046171,-306.21779093,0.00019,2]
[322832898,1713375046188,-483.87719183,0.00019,2]
[322832913,1713375046321,-548730.92987031,0.00019,2]
[322832918,1713375046358,-590.48272,0.00019,2]
[322832921,1713375046377,-905.72771757,0.00019,2]
[322832926,1713375046408,-1378.86660871,0.00019,2]